Cogmind - Beta 15 @@@ ROGUE MODE // 2025.06.27 @ 17:36:42 Player: Annull999 Result: Self-destructed Performance ------------- Evolutions (1) 500 Regions Visited (3) 600 Robots Destroyed (9) 45 Value Destroyed (239) 239 Prototype IDs (0) 0 Alien Tech Used (0) 0 Bonus (0) 0 TOTAL SCORE: 1384 Bonus ------- None Cogmind --------- Core Integrity 329/400 Matter 256/300 Energy 90/100 System Corruption 0% Temperature Cool (0) Movement Core (150) Ox2 Location -9/Materials Parts ------- > --- POWER (1) -------- (None) > --- PROPULSION (4) --- (None) > --- UTILITY (2) ------ Small Storage Unit > --- WEAPON (2) ------- Particle Gun > --- INVENTORY (8) ---- Light Treads Scrap Suit Medium Storage Unit Huge Storage Unit Utility Shielding Field Recycling Unit (0) Peak State ------------ > --- POWER ------------ Backup Power I > --- PROPULSION ------- Light Treads Light Treads Improved Aluminum Leg Improved Hover Unit > --- UTILITY ---------- Small Storage Unit Utility Shielding > --- WEAPON ----------- Particle Gun Particle Gun > --- INVENTORY -------- Scrap Suit Medium Storage Unit Huge Storage Unit Field Recycling Unit [Rating: 14] Favorites ----------- Power Light Ion Engine Engine Light Ion Engine Propulsion Light Treads Treads Light Treads Leg Improved Aluminum Leg Hover Unit Improved Hover Unit Utility Small Storage Unit Device Improved Terrain Scanner Storage Small Storage Unit Protection Utility Shielding Weapon Medium Laser Energy Gun Medium Laser Ballistic Gun Assault Rifle Build | -11 -10 -10 -9 ------- Run | Yrd Mat Min Mat Slots Evolved 2 | . . . 2 Power . | . . . . Propulsion 2 | . . . 2 Utility . | . . . . Weapon . | . . . . Parts Attached 17 | 4 5 2 6 Power 1 | . 1 . . Engine 1 | . 1 . . Core . | . . . . Reactor . | . . . . Propulsion 9 | 4 1 1 3 Treads 5 | 2 1 1 1 Leg 3 | 2 . . 1 Wheel . | . . . . Hover 1 | . . . 1 Flight . | . . . . Utility 4 | . 3 . 1 Device 1 | . 1 . . Storage 2 | . 2 . . Processor . | . . . . Hackware . | . . . . Protection 1 | . . . 1 Artifact . | . . . . Weapon 3 | . . 1 2 Energy Gun 3 | . . 1 2 Energy Cannon . | . . . . Ballistic Gun . | . . . . Ballistic Cannon . | . . . . Launcher . | . . . . Special Weapon . | . . . . Impact Weapon . | . . . . Slashing Weapon . | . . . . Piercing Weapon . | . . . . Special Melee Weapon . | . . . . Unidentified Prototypes . | . . . . Parts Lost 10 | . 4 4 2 Power 3 | . 2 . 1 Propulsion 3 | . 1 2 . Utility 1 | . 1 . . Weapon 3 | . . 2 1 Highest Loss Streak 3 | . 2 3 2 To Critical Strikes . | . . . . Average Backups 4 | 6 6 3 3 Power . | 1 . . . Propulsion 2 | 4 3 1 . Utility 1 | . . 1 3 Weapon . | 1 1 . . Tool/Special . | . . . . Unused Backups 5 | . 2 . 3 Power . | . . . . Propulsion 2 | . 2 . . Utility 3 | . . . 3 Weapon . | . . . . Tool/Special . | . . . . Average Slot Usage (%) 74 | . 92 48 63 Engine 7 | . 13 . 2 Treads 23 | . 26 18 19 Leg 1 | . . . 3 Device 4 | . 7 . . Storage 13 | . 14 14 11 Protection 1 | . . . 6 Energy Gun 14 | . 14 14 17 Ballistic Gun 8 | . 14 2 . Peak Build Rating 14 | 6 9 5 14 Average Rating 6 | 6 7 3 8 On Entrance 5 | 6 6 5 4 Naked Turns . | . . . . Heaviest Build 13 | 12 13 9 13 Greatest Support 40 | 20 40 40 40 Greatest Overweight (x) 4 | . . . 4 Average Overweight (x) . | . . . 1 Largest Inventory Capacity 25 | 8 25 8 8 Average Capacity 8 | 8 8 8 8 Most Carried 8 | 6 8 5 7 Average Carried 5 | 6 6 3 4 Final Capacity 8 | 8 8 8 8 Final Carried 7 | 6 4 5 7 Class Distribution -------------------- 100% | Mutant Dominant Class ---------------- Mutant | -10/Materials Mutant | -10/Mines Mutant | -9/Materials Resources | -11 -10 -10 -9 ----------- Run | Yrd Mat Min Mat Matter Collected 373 | 221 137 15 . Remotely . | . . . . Salvage Created 337 | . 235 102 . Parts 23 | . 21 2 . Haulers Intercepted . | . . . . Recyclers Shooed . | . . . . Parts Field Recycled . | . . . . Retrieved Matter . | . . . . Parts Self-Destructed . | . . . . Prevented . | . . . . Kills | -11 -10 -10 -9 ------- Run | Yrd Mat Min Mat Combat Hostiles Destroyed 6 | . 4 2 . Guns 6 | . 4 2 . Classes Destroyed 4 | . 4 . . Worker 1 | . 1 . . Builder 1 | . 1 . . Watcher 1 | . 1 . . Grunt 6 | . 4 2 . Best Kill Streak 4 | . 4 1 . Combat Bots Only 2 | . 2 1 . Max Kills in Single Turn 2 | . 2 1 . Gunslinging . | . . . . Exploded . | . . . . Melee . | . . . . Uniques/NPCs Destroyed . | . . . . Combat | -11 -10 -10 -9 -------- Run | Yrd Mat Min Mat Hostile Shots Fired 174 | . 93 51 30 Missed 53 | . 30 16 7 Hits 121 | . 63 35 23 Projectile 121 | . 63 35 23 Critical Strikes 2 | . . 2 . Damage Taken 1402 | . 624 481 297 Core 284 | . 93 120 71 Absorbed by Shields . | . . . . Core Remaining (%) 57 | 100 . 14 . Volleys Fired 31 | . 17 13 1 Largest 2 | . 2 1 2 Hottest 130 | . 70 50 130 Shots Fired 49 | . 34 13 2 Gun 49 | . 34 13 2 Cannon . | . . . . Launcher . | . . . . Special . | . . . . Kinetic 17 | . 17 . . Thermal 32 | . 17 13 2 Explosive . | . . . . Electromagnetic . | . . . . Robot Hit Streak 5 | . 4 5 4 Robot Miss Streak 3 | . 3 3 . Penetration Max . | . . . . Secondary Targets . | . . . . Shots Hit Robots 29 | . 18 9 2 Core Hits 18 | . 12 5 1 Critical Kills . | . . . . Critical Parts Destroyed . | . . . . Critical Strikes 3 | . 2 1 . Burn 3 | . 2 1 . Melee Attacks . | . . . . Impact . | . . . . Slashing . | . . . . Piercing . | . . . . Sneak Attacks . | . . . . Combat Hostiles . | . . . . Follow-up Attacks . | . . . . Damage Inflicted 402 | . 256 108 38 Guns 386 | . 247 108 31 Cannons . | . . . . Explosions . | . . . . Melee . | . . . . Ramming 16 | . 9 . 7 Kinetic 147 | . 147 . . Thermal 239 | . 100 108 31 Explosive . | . . . . Electromagnetic . | . . . . Impact . | . . . . Slashing . | . . . . Piercing . | . . . . Highest Corruption . | . . . . Average Corruption . | . . . . Corruption Purged . | . . . . Corruption Blocked . | . . . . Overload Shots . | . . . . Overflow Damage . | . . . . Projectiles . | . . . . Explosions . | . . . . Melee . | . . . . Knockbacks . | . . . . Impact . | . . . . Kinetic . | . . . . Secondary . | . . . . Self-Inflicted Damage 3 | . . . 3 Shots . | . . . . Rammed 5 | . 3 . 2 Targets Rammed 5 | . 3 . 2 Kicked . | . . . . Crushed . | . . . . Highest Temperature 72 | . 46 60 72 Average Temperature 20 | . 19 21 34 Received Heat Transfer 699 | . 216 318 165 Siege Activations . | . . . . Martial Activations . | . . . . Shielding Activations . | . . . . Robots Disrupted . | . . . . Combat Hostiles . | . . . . Robots Corrupted . | . . . . Combat Hostiles . | . . . . Parts Fried . | . . . . Impact Corruptions . | . . . . Robots Melted . | . . . . Combat Hostiles . | . . . . Parts Melted 3 | . 2 1 . Heat Transferred 865 | . 444 347 74 Parts Sabotaged . | . . . . Parts Stolen . | . . . . Parts Stripped . | . . . . Power Chain Reactions . | . . . . Alert | -11 -10 -10 -9 ------- Run | Yrd Mat Min Mat Maximum Alert Level . | . . . . Low Security (%) 100 | 100 100 100 100 Level 1 . | . . . . Level 2 . | . . . . Level 3 . | . . . . Level 4 . | . . . . Level 5 . | . . . . High Security . | . . . . Max Security . | . . . . Peak Influence 77 | . 77 30 4 Initial 3 | . . 3 . Average 13 | . 23 4 . Influence Increases 273 | . 219 50 4 Destroy 0b10 Robot/C 120 | . 80 40 . Destroy 0b10 Robot/NC 15 | . 15 . . Destroy Leader 32 | . 22 10 . Successful Hack 30 | . 26 . 4 Destroy Structure 1 | . 1 . . Lose Combat Pursuer 75 | . 75 . . Influence Decreases 269 | . 210 59 . Entered New Map 6 | . . 6 . Time Decay 231 | . 188 43 . Lost Part 32 | . 22 10 . Squads Dispatched 3 | . 2 . 1 Investigation 2 | . 1 . 1 Extermination . | . . . . Reinforcement 1 | . 1 . . Assault . | . . . . Garrison . | . . . . Intercept . | . . . . Searches Triggered . | . . . . Construction Impeded . | . . . . Haulers Reinforced . | . . . . Active Scanning Responses . | . . . . Cargo Convoy Interrupts . | . . . . Stealth | -11 -10 -10 -9 --------- Run | Yrd Mat Min Mat Distress Signals 5 | . 4 . 1 Communications Jammed . | . . . . Distress Signals . | . . . . Times Spotted 25 | . 17 4 4 Peak Tracking Total 5 | . 5 2 4 Tactical Retreats 4 | . 4 . . Traps | -11 -10 -10 -9 ------- Run | Yrd Mat Min Mat Traps Triggered 1 | . . . 1 Indirectly . | . . . . Trap Hack Attempts . | . . . . Triggered . | . . . . Disarmed . | . . . . Reprogrammed . | . . . . Reused . | . . . . Traps Extracted . | . . . . Installed . | . . . . Triggered . | . . . . Machines | -11 -10 -10 -9 ---------- Run | Yrd Mat Min Mat Machines Disabled . | . . . . Max in Single Turn . | . . . . Machines Repaired . | . . . . Machines Dismantled . | . . . . Machines Sabotaged . | . . . . Overloaded Fab Kills . | . . . . Hacking | -11 -10 -10 -9 --------- Run | Yrd Mat Min Mat Machines Accessed 7 | . 3 . 4 Terminals 6 | . 3 . 3 Fabricators . | . . . . Repair Stations 1 | . . . 1 Recycling Units . | . . . . Scanalyzers . | . . . . Garrison Access . | . . . . Total Hacks 22 | . 11 . 11 Successful 14 | . 5 . 9 Failed 8 | . 6 . 2 Catastrophic 3 | . 3 . . Database Lockouts . | . . . . Manual 15 | . 8 . 7 Terminals 19 | . 11 . 8 Fabricators . | . . . . Repair Stations 3 | . . . 3 Recycling Units . | . . . . Scanalyzers . | . . . . Garrison Access . | . . . . Terminal Hacks 6 | . 2 . 4 Branch Access Points 2 | . 1 . 1 Terminal Index 1 | . . . 1 Alert Level 1 | . . . 1 Locate Traps 1 | . . . 1 Registered Components 1 | . 1 . . Fabricator Hacks . | . . . . Repair Station Hacks 2 | . . . 2 Scan Component 1 | . . . 1 Refit 1 | . . . 1 Recycling Unit Hacks . | . . . . Scanalyzer . | . . . . Garrison Access Hacks . | . . . . Unauthorized Hacks 6 | . 3 . 3 Terminals 6 | . 3 . 3 Botnet 6 | . 3 . 3 Fabricators . | . . . . Repair Stations . | . . . . Recycling Units . | . . . . Scanalyzers . | . . . . Garrison Access . | . . . . Data Cores Recovered . | . . . . Used . | . . . . Hacking Detections 6 | . 3 . 3 Full Trace Events 2 | . 1 . 1 Feedback Events . | . . . . Feedback Blocked . | . . . . Robot Schematics Acquired . | . . . . Robots Built . | . . . . Authchips . | . . . . Time . | . . . . Total Robot Build Rating . | . . . . Part Schematics Acquired . | . . . . Parts Built . | . . . . Authchips . | . . . . Time . | . . . . Total Part Build Rating . | . . . . Parts Repaired . | . . . . Time . | . . . . Parts Recycled . | . . . . Recycled Matter . | . . . . Retrieved Matter . | . . . . Retrieved Components . | . . . . Parts Scanalyzed . | . . . . Part Schematics Acquired . | . . . . Parts Damaged . | . . . . Bothacking | -11 -10 -10 -9 ------------ Run | Yrd Mat Min Mat Used RIF Installer . | . . . . Robots Hacked . | . . . . Non-combat . | . . . . Combat . | . . . . Robot Hacks Applied . | . . . . Relay Couplers Released . | . . . . Fabnet Peak Effective % . | . . . . Robots Rewired . | . . . . Allies Hacked . | . . . . Hacks Repelled . | . . . . Allies | -11 -10 -10 -9 -------- Run | Yrd Mat Min Mat Total Allies . | . . . . Largest Group . | . . . . Highest-Rated Group . | . . . . Highest-Rated Ally . | . . . . Total Orders . | . . . . Ally Attacks . | . . . . Total Damage . | . . . . Kills . | . . . . Allies Corrupted . | . . . . Allies Melted . | . . . . Intel | -11 -10 -10 -9 ------- Run | Yrd Mat Min Mat Active Infowar (turns) 357 | . 357 . . Terrain 357 | . 357 . . Robot Analysis Total . | . . . . Derelict Logs Recovered . | . . . . Drone Launches . | . . . . Drone Recoveries . | . . . . Exploration | -11 -10 -10 -9 ------------- Run | Yrd Mat Min Mat Turns Passed 1158 | 10 609 330 209 Spaces Moved 627 | 4 334 184 105 Core 39 | . . . 39 Treads 546 | . 328 184 34 Legs 13 | 4 6 . 3 Wheels . | . . . . Hover 29 | . . . 29 Flight . | . . . . Fastest Speed 110 | 120 120 160 110 Average Speed 162 | 120 159 160 176 Slowest Speed 250 | 120 160 160 250 Overloaded Moves . | . . . . Propulsion Burnouts . | . . . . Robots Hopped . | . . . . Potential Cave-ins . | . . . . Cave-ins Triggered . | . . . . Exploration Rate (%) 27 | 2 48 46 14 Regions Visited 3 Branch Regions 1 Pre-discovered Areas . | . . . . Known Exits Taken 1 | . 1 . . Unknown Exits Taken 2 | 1 . 1 . Scrap Searched . | . . . . Spaces Dug . | . . . . Terrain Destroyed . | . . . . Melee . | . . . . Projectile . | . . . . AOE . | . . . . Terrain Rammed . | . . . . Walls Destroyed . | . . . . Machines Disabled . | . . . . Actions | -11 -10 -10 -9 --------- Run | Yrd Mat Min Mat Total 715 | 7 375 207 126 Wait 7 | . . 7 . Move 624 | 3 333 183 105 Hop . | . . . . Pick Up 16 | . 7 2 7 Fast Attach . | . . . . Attach 10 | . 3 2 5 Detach 1 | . . . 1 Swap 11 | 4 6 . 1 Drop 10 | . 6 . 4 Fire 31 | . 17 13 1 Melee . | . . . . Ram 2 | . . . 2 Kick . | . . . . Crush 3 | . 3 . . Escape Stasis . | . . . . Rewire . | . . . . Trap . | . . . . Miscellaneous . | . . . . Route ------- -11/Scrapyard -10/Materials (discovered 2 exits: *Mat / *Min) -10/Mines -9/Materials (discovered 1 exit: Min) History --------- Turn | Location | Event 1 | -11/Scrapyard | Discovered new exit (range 3) 11 | -11/Scrapyard | Entered Materials 317 | -10/Materials | Build established: Mutant 452 | -10/Materials | Identified exit to Mines 569 | -10/Materials | Discovered new exit (range 13) 620 | -10/Materials | Entered Mines 647 | -10/Mines | Core integrity fell below 50% 746 | -10/Mines | Core integrity fell below 20% 774 | -10/Mines | Lost 3 parts (2n1w) 883 | -10/Mines | Found a Scrap Suit stashed away for nefarious purposes 886 | -10/Mines | Found Scrap Suit 942 | -10/Mines | Discovered new exit (range 6) 950 | -10/Mines | Entered Materials 950 | -9/Materials | Evolved 2 slots: Propulsion x2 971 | -9/Materials | Identified exit to Mines 1159 | -9/Materials | Self-destructed Last Messages --------------- 01123_ ALERT: Suspicious activity at Terminal M001. Dispatching Investigation squad. 01123_ Slammed into R-06 Scavenger. 01141_ Particle Gun destroyed. 01148_ K-01 Serf collects debris. 01151_ Connecting with Terminal... >>Alert(Check) Current Alert Level: Low Security >>Index(Terminals) Found 12 terminals. Downloaded coordinate data. >>Trojan(Botnet) Trojan loaded successfully. Testing... Terminal linked with 2 systems. Awaiting botnet instructions. 01157_ Dropped Lgt. Treads. 01157_ K-01 Serf collects debris. 01158_ Acquired Lgt. Treads. 01158_ Terminal disabled. Map ----- +----------------------------------------------------+ | ?????????????????????????????????????????????????? | | ?????????????????????????????????????????????????? | | ?????????????????????????????????????????????????? | | ?????????????????????????????????????????????????? | | ?????????????????????????????????????????????????? | | ???????????????????????????????????????????####### | | ???????????????????????????????????????????# | | ???????????????????????????????????????????#" | | ???????????????????????????????????????????#T " | | ???????????????????????????????????????????#" " | | ??????????????????????????#####????????????# " | | ?????????????????????????# #???????????# | | ?????????????????????????# #???????????# | | ?????????????????????????# +???????????# | | ?????????????????????????? ????????????####### | | ?????????????????????????? ???????????????# | | ??????????????????????????# #???????????????# | | ??????????????????????????# #???????????????# | | ???????????????????#??????# #???????????????# | | ???????????????????# ?????# #???????????????# | | ???????????????????# o????# r#???????????????# | | ???????????????????# ???# #???????????????#### | | ???????????????????# #### ########???????????? | | ???????????????????# #????????#### | | ???????????????????# ########## | | ???????????????????# @ T | | ???????????????????##k##### a | | ??????????????????????????# !! g | | ??????????????????????????# !] gg | | ??????????????????????????# !] | | ??????????????????????????# ^ | | ??????????????????????????# r | | ??????????????????????????# [""" | | ??????????????????????????############# """ | | ??????????????????????????????????????# """ | | ??????????????????????????????????????# ^ | | ??????????????????????????????????????# | | ??????????????????????????????????????# ^ | | ??????????????????????????????????????# | | ??????????????>???????????????????????# =! ^ # | | ??????????????????????????????????????# =^ # | | ??????????????????????????????????????? ? # | | ????????????????????????????????????????????? ? | | ?????????????????????????????????????????????????? | | ?????????????????????????????????????????????????? | | ?????????????????????????????????????????????????? | | ?????????????????????????????????????????????????? | | ?????????????????????????????????????????????????? | | ?????????????????????????????????????????????????? | | ?????????????????????????????????????????????????? | +----------------------------------------------------+ Best States ------------- Heat Dissipation 28 Energy Generation 10 Energy Capacity 125 Matter Stores 300 Matter Capacity 300 Sight Range 16 Terrain Scan Range 16 Terrain Scan Density 10 Utility Shielding 33 Evasion (%) 45 Recoil Reduction 2 Item Schematics ----------------- None Robot Schematics ------------------ None Fabricated ------------ Nothing Repaired ---------- Nothing Alien Tech Used ----------------- None Achievements -------------- None Challenges ------------ None Game ------ Seed GodTowerBiocell Manual? 0 Play Time 00:19:23 Cumulative 17.9 hours Start 2025.06.27 @ 16:32:28 End 2025.06.27 @ 17:36:42 Sessions 1 Manual Loads 0 Difficulty Rogue Special Mode None Game No. 31 Rogue 31 Adventurer 0 Explorer 0 Win Type - Total 0 Types 0/0/0/0/0/0/0/0/0/0 Lore% 5 Gallery% 16 Achievement% 18 Wizard Run 0 Options --------- Layout 0 ASCII 0 Keyboard 0 Movement Numpad Keybinds 0 Fullscreen 2 Font 24/Smallcaps Map View 76x50 Zoom Use 0% Tactical HUD 1 Map Filters NONE Filters NONE Steam 1 RUN: 2d61bc88-9d37-4299-b2bd-92749d1f466c